﻿DEPARTMENT FAMILY,ENTITY,Date,Expense Type,Expense Area,Supplier,Transaction number,Amount,Description
DEPARTMENT OF HEALTH,BLACKPOOL TEACHING HOSPITALS NHS FT ,May-21,Contractual Clinical Services,Contractual Clinical Services,Armstrong Environmental Ltd,3117,"25,950.00",Laboratory Equipment - Maintenance
DEPARTMENT OF HEALTH,BLACKPOOL TEACHING HOSPITALS NHS FT ,May-21,Facilities ,HARD FM ,Atlas BFW Management Ltd,1710000489,"3,619,620.36",Facilities Management Contract 
DEPARTMENT OF HEALTH,BLACKPOOL TEACHING HOSPITALS NHS FT ,May-21,Corporate ,Corporate ,Barsham West Limited,1005,"52,000.00",Overseas Recruitment Costs 
DEPARTMENT OF HEALTH,BLACKPOOL TEACHING HOSPITALS NHS FT ,May-21,Corporate ,Covid Mass Vaccine,Blackpool Entertainment Company Ltd,INV005407,"26,000.00",Lease Rents
DEPARTMENT OF HEALTH,BLACKPOOL TEACHING HOSPITALS NHS FT ,May-21,Corporate ,Covid Mass Vaccine,Blackpool Entertainment Company Ltd,INV005418,"26,000.00",Lease Rents
DEPARTMENT OF HEALTH,BLACKPOOL TEACHING HOSPITALS NHS FT ,May-21,Facilities ,Ict Telecommunications,Bt Global Services,0790325224,"26,981.57",Telephone Rental and Call Charges
DEPARTMENT OF HEALTH,BLACKPOOL TEACHING HOSPITALS NHS FT ,May-21,Facilities ,Ict Telecommunications,Bt Telephone Payment Centre,VP86052270M1463E,"34,602.18",Telephone Rental and Call Charges
DEPARTMENT OF HEALTH,BLACKPOOL TEACHING HOSPITALS NHS FT ,May-21,Facilities ,Ict Managed Print,Canon (Uk) Ltd,402280940,"28,638.78",Contract : Photocopying Rental And Charges
DEPARTMENT OF HEALTH,BLACKPOOL TEACHING HOSPITALS NHS FT ,May-21,Contractual Clinical Services,Gastro Unit,Chg-Meridian UK Limited,7057303,"65,854.85",Med Surg Eqpt Leasing
DEPARTMENT OF HEALTH,BLACKPOOL TEACHING HOSPITALS NHS FT ,May-21,Corporate ,Corporate ,CHS Healthcare,37615,"38,700.00",External Consultancy Fees
DEPARTMENT OF HEALTH,BLACKPOOL TEACHING HOSPITALS NHS FT ,May-21,Contractual Clinical Services,Admin - Pathology,Clinisys Solutions Ltd,INV34212100215,"295,745.75",Computer Software / License Fees
DEPARTMENT OF HEALTH,BLACKPOOL TEACHING HOSPITALS NHS FT ,May-21,Contractual Clinical Services,Admin - Pathology,Clinisys Solutions Ltd,INV34212100216,"295,745.75",Computer Software / License Fees
DEPARTMENT OF HEALTH,BLACKPOOL TEACHING HOSPITALS NHS FT ,May-21,Corporate ,Pgmc Library,Elsevier Bv,M502116,"41,935.00",Books Journals and Subscriptions
DEPARTMENT OF HEALTH,BLACKPOOL TEACHING HOSPITALS NHS FT ,May-21,Corporate ,Corporate ,eoSurgical Ltd,19_03_01_21,"43,413.00",Computer Hardware Purchases
DEPARTMENT OF HEALTH,BLACKPOOL TEACHING HOSPITALS NHS FT ,May-21,Facilities ,Soft FM ,Express Launderers,4501,"81,600.00",Laundry and Linen Services 
DEPARTMENT OF HEALTH,BLACKPOOL TEACHING HOSPITALS NHS FT ,May-21,Contractual Clinical Services,Blood Bank,Genmed Me Ltd,18590,"54,464.87",Laboratory Reagents
DEPARTMENT OF HEALTH,BLACKPOOL TEACHING HOSPITALS NHS FT ,May-21,Contractual Clinical Services,Microbiology,Genmed Me Ltd,18742,"31,150.93",Laboratory Test Kits
DEPARTMENT OF HEALTH,BLACKPOOL TEACHING HOSPITALS NHS FT ,May-21,Contractual Clinical Services,Laboratory Test Kits,Genmed Me Ltd,18652,"42,499.67",Laboratory Test Kits
DEPARTMENT OF HEALTH,BLACKPOOL TEACHING HOSPITALS NHS FT ,May-21,Corporate ,Insurance,Griffiths & Armour,506081331,"42,000.00",Insurance Costs
DEPARTMENT OF HEALTH,BLACKPOOL TEACHING HOSPITALS NHS FT ,May-21,Corporate ,Insurance,Griffiths & Armour,506082241,"82,216.96",Insurance Costs
DEPARTMENT OF HEALTH,BLACKPOOL TEACHING HOSPITALS NHS FT ,May-21,Corporate ,Insurance,Griffiths & Armour,506082517,"26,320.00",Insurance Costs
DEPARTMENT OF HEALTH,BLACKPOOL TEACHING HOSPITALS NHS FT ,May-21,Corporate ,Staff Recruitment,Health Education England,49304849,"53,199.53",Advertising and Staff Recruitment Global Learners 
DEPARTMENT OF HEALTH,BLACKPOOL TEACHING HOSPITALS NHS FT ,May-21,Facilities ,Digital Identity,Ideal Health Consultants Ltd,6516,"39,938.76",Computer Maintenance
DEPARTMENT OF HEALTH,BLACKPOOL TEACHING HOSPITALS NHS FT ,May-21,Facilities ,Information Management,Insight Direct (Uk) Ltd,5275850,"29,127.84",Computer Maintenance
DEPARTMENT OF HEALTH,BLACKPOOL TEACHING HOSPITALS NHS FT ,May-21,Facilities ,Ict Maintenance Services,Integrated Medical Solutions Ltd,SIN602618,"67,294.01",Computer Maintenance
DEPARTMENT OF HEALTH,BLACKPOOL TEACHING HOSPITALS NHS FT ,May-21,Corporate ,Corporate ,Jane Lewis Health And Care,2016,"34,540.80",Staff Recruitment
DEPARTMENT OF HEALTH,BLACKPOOL TEACHING HOSPITALS NHS FT ,May-21,Contractual Clinical Services,Midwifery,Lancashire & South Cumbria NHS Foundation Trust,I0071536,"66,805.00",Better Training: Better Births funding 
DEPARTMENT OF HEALTH,BLACKPOOL TEACHING HOSPITALS NHS FT ,May-21,Corporate ,Corporate ,Lancashire & South Cumbria NHS Foundation Trust,I0071644,"60,817.00",Project Costs 
DEPARTMENT OF HEALTH,BLACKPOOL TEACHING HOSPITALS NHS FT ,May-21,Contractual Clinical Services,Contractual Clinical Services,Lancashire Teaching Hospitals NHS Foundation Trust,15348514,"29,298.38",Laboratory External Tests
DEPARTMENT OF HEALTH,BLACKPOOL TEACHING HOSPITALS NHS FT ,May-21,Contractual Clinical Services,Medical Staff - Oncology,Lancashire Teaching Hospitals NHS Foundation Trust,15347912,"49,295.53",Medical Staff - Oncology
DEPARTMENT OF HEALTH,BLACKPOOL TEACHING HOSPITALS NHS FT ,May-21,Contractual Clinical Services,North Sexual Health Services,Lancashire Teaching Hospitals NHS Foundation Trust,15348196,"89,000.00",North Sexual Health Services
DEPARTMENT OF HEALTH,BLACKPOOL TEACHING HOSPITALS NHS FT ,May-21,Corporate ,Research and Development ,Layton Medical Centre,NOVA04,"976,469.19",Covid-19 Vaccine Studies
DEPARTMENT OF HEALTH,BLACKPOOL TEACHING HOSPITALS NHS FT ,May-21,Facilities ,Digital Identity,Microsoft Ltd,9899201276,"48,536.40",Computer Maintenance
DEPARTMENT OF HEALTH,BLACKPOOL TEACHING HOSPITALS NHS FT ,May-21,Contractual Clinical Services,Haematology ,NHS Blood And Transplant,895979,"80,435.52",Blood Products
DEPARTMENT OF HEALTH,BLACKPOOL TEACHING HOSPITALS NHS FT ,May-21,Contractual Clinical Services,Haematology ,NHS Blood And Transplant,896219,"171,382.41",Blood Products
DEPARTMENT OF HEALTH,BLACKPOOL TEACHING HOSPITALS NHS FT ,May-21,Facilities ,Digital Identity,NHS Business Services Authority,0000061444,"38,664.00",Computer Maintenance
DEPARTMENT OF HEALTH,BLACKPOOL TEACHING HOSPITALS NHS FT ,May-21,Corporate ,Corporate ,NHS North of England CSU,7310021859,"40,366.00",External Consultancy Fees
DEPARTMENT OF HEALTH,BLACKPOOL TEACHING HOSPITALS NHS FT ,May-21,Corporate ,Corporate ,NHS North of England CSU,7310021408,"94,704.00",External Consultancy Fees
DEPARTMENT OF HEALTH,BLACKPOOL TEACHING HOSPITALS NHS FT ,May-21,Corporate ,E-Financials,Northumbria Healthcare NHS Foundation Trust,7510411598,"104,922.00",Computer Software / License Fees
DEPARTMENT OF HEALTH,BLACKPOOL TEACHING HOSPITALS NHS FT ,May-21,Contractual Clinical Services,Cystic Fibrosis,Pari Medical Ltd,26083622,"52,999.20",Med Surg Eqpt General
DEPARTMENT OF HEALTH,BLACKPOOL TEACHING HOSPITALS NHS FT ,May-21,Corporate ,Corporate ,Qiagen Ltd,96265368,"68,502.00",Laboratory Test Kits
DEPARTMENT OF HEALTH,BLACKPOOL TEACHING HOSPITALS NHS FT ,May-21,Facilities ,Ict Operations,Sitekit Applications Ltd,1164,"49,500.00",Project Costs 
DEPARTMENT OF HEALTH,BLACKPOOL TEACHING HOSPITALS NHS FT ,May-21,Facilities ,Ict Operations,Sitekit Applications Ltd,1171,"26,200.48",Project Costs 
DEPARTMENT OF HEALTH,BLACKPOOL TEACHING HOSPITALS NHS FT ,May-21,Facilities ,Ict Operations,Sitekit Applications Ltd,1174,"49,500.00",Project Costs 
DEPARTMENT OF HEALTH,BLACKPOOL TEACHING HOSPITALS NHS FT ,May-21,Capital Purchases ,Capital Purchases ,Integrated Health Projects Joint Venture,21040036,"360,787.12",Capital Purchases 
DEPARTMENT OF HEALTH,BLACKPOOL TEACHING HOSPITALS NHS FT ,May-21,Capital Purchases ,Capital Purchases ,Integrated Health Projects Joint Venture,21040037,"239,706.46",Capital Purchases 
DEPARTMENT OF HEALTH,BLACKPOOL TEACHING HOSPITALS NHS FT ,May-21,Capital Purchases ,Capital Purchases ,Integrated Health Projects Joint Venture,21040038,"470,001.20",Capital Purchases 
DEPARTMENT OF HEALTH,BLACKPOOL TEACHING HOSPITALS NHS FT ,May-21,Capital Purchases ,Capital Purchases ,Integrated Health Projects Joint Venture,21040039,"459,939.36",Capital Purchases 
DEPARTMENT OF HEALTH,BLACKPOOL TEACHING HOSPITALS NHS FT ,May-21,Capital Purchases ,Capital Purchases ,A Copeland Group Limited,200631AP1,"171,609.74",Capital Purchases 
DEPARTMENT OF HEALTH,BLACKPOOL TEACHING HOSPITALS NHS FT ,May-21,Capital Purchases ,Capital Purchases ,A Copeland Group Limited,200631APP1,"171,609.74",Capital Purchases 
DEPARTMENT OF HEALTH,BLACKPOOL TEACHING HOSPITALS NHS FT ,May-21,Capital Purchases ,Capital Purchases ,Stryker Uk Ltd,29015400,"37,049.18",Capital Purchases 
DEPARTMENT OF HEALTH,BLACKPOOL TEACHING HOSPITALS NHS FT ,May-21,Capital Purchases ,Capital Purchases ,Dekomed Ltd,59587,"157,944.82",Capital Purchases 
DEPARTMENT OF HEALTH,BLACKPOOL TEACHING HOSPITALS NHS FT ,May-21,Capital Purchases ,Capital Purchases ,Insight Direct (Uk) Ltd,5282377,"65,318.40",Capital Purchases 
DEPARTMENT OF HEALTH,BLACKPOOL TEACHING HOSPITALS NHS FT ,May-21,Capital Purchases ,Capital Purchases ,Integrated Medical Solutions Ltd,SIN602617,"29,337.60",Capital Purchases 
DEPARTMENT OF HEALTH,BLACKPOOL TEACHING HOSPITALS NHS FT ,May-21,Capital Purchases ,Capital Purchases ,Insight Direct (Uk) Ltd,5277535,"148,704.19",Capital Purchases 
DEPARTMENT OF HEALTH,BLACKPOOL TEACHING HOSPITALS NHS FT ,May-21,Capital Purchases ,Capital Purchases ,Insight Direct (Uk) Ltd,5278952,"37,821.31",Capital Purchases 
DEPARTMENT OF HEALTH,BLACKPOOL TEACHING HOSPITALS NHS FT ,May-21,Capital Purchases ,Capital Purchases ,Insight Direct (Uk) Ltd,5278966,"56,891.52",Capital Purchases 
DEPARTMENT OF HEALTH,BLACKPOOL TEACHING HOSPITALS NHS FT ,May-21,Capital Purchases ,Capital Purchases ,Ge Healthcare Clinical Systems (Uk) Ltd_002,634343,"86,286.15",Capital Purchases 
DEPARTMENT OF HEALTH,BLACKPOOL TEACHING HOSPITALS NHS FT ,May-21,Pharmacy Drugs Inventory ,Pharmacy Drugs Inventory ,Bristol Myers Squibb Pharmaceuticals Ltd,100663587,"41,074.80",Pharmacy Drugs Inventory 
DEPARTMENT OF HEALTH,BLACKPOOL TEACHING HOSPITALS NHS FT ,May-21,Pharmacy Drugs Inventory ,Pharmacy Drugs Inventory ,Roche Products Ltd,1322185457,"36,076.70",Pharmacy Drugs Inventory 
DEPARTMENT OF HEALTH,BLACKPOOL TEACHING HOSPITALS NHS FT ,May-21,Pharmacy Drugs Inventory ,Pharmacy Drugs Inventory ,Roche Products Ltd,1322186770,"27,474.83",Pharmacy Drugs Inventory 
DEPARTMENT OF HEALTH,BLACKPOOL TEACHING HOSPITALS NHS FT ,May-21,Pharmacy Drugs Inventory ,Pharmacy Drugs Inventory ,Roche Products Ltd,1322186833,"64,125.04",Pharmacy Drugs Inventory 
DEPARTMENT OF HEALTH,BLACKPOOL TEACHING HOSPITALS NHS FT ,May-21,Pharmacy Drugs Inventory ,Pharmacy Drugs Inventory ,Baxter Healthcare Ltd,21094830,"154,978.02",Pharmacy Drugs Inventory 
DEPARTMENT OF HEALTH,BLACKPOOL TEACHING HOSPITALS NHS FT ,May-21,Pharmacy Drugs Inventory ,Pharmacy Drugs Inventory ,Baxter Healthcare Ltd,21104816,"39,159.32",Pharmacy Drugs Inventory 
DEPARTMENT OF HEALTH,BLACKPOOL TEACHING HOSPITALS NHS FT ,May-21,Pharmacy Drugs Inventory ,Pharmacy Drugs Inventory ,Baxter Healthcare Ltd,21113719,"44,651.52",Pharmacy Drugs Inventory 
DEPARTMENT OF HEALTH,BLACKPOOL TEACHING HOSPITALS NHS FT ,May-21,Pharmacy Drugs Inventory ,Pharmacy Drugs Inventory ,Baxter Healthcare Ltd,21123865,"79,256.10",Pharmacy Drugs Inventory 
DEPARTMENT OF HEALTH,BLACKPOOL TEACHING HOSPITALS NHS FT ,May-21,Pharmacy Drugs Inventory ,Pharmacy Drugs Inventory ,Aah Hospital Service,47161997Q,"27,615.12",Pharmacy Drugs Inventory 
DEPARTMENT OF HEALTH,BLACKPOOL TEACHING HOSPITALS NHS FT ,May-21,Pharmacy Drugs Inventory ,Pharmacy Drugs Inventory ,Mawdsley Brooks And Co Ltd,8187506,"31,615.87",Pharmacy Drugs Inventory 
DEPARTMENT OF HEALTH,BLACKPOOL TEACHING HOSPITALS NHS FT ,May-21,Pharmacy Drugs Inventory ,Pharmacy Drugs Inventory ,Bayer Plc,824C342817,"59,309.64",Pharmacy Drugs Inventory 
DEPARTMENT OF HEALTH,BLACKPOOL TEACHING HOSPITALS NHS FT ,May-21,Pharmacy Drugs Inventory ,Pharmacy Drugs Inventory ,Bayer Plc,824C342818,"57,028.50",Pharmacy Drugs Inventory 
DEPARTMENT OF HEALTH,BLACKPOOL TEACHING HOSPITALS NHS FT ,May-21,Pharmacy Drugs Inventory ,Pharmacy Drugs Inventory ,Bayer Plc,824C344106,"75,277.62",Pharmacy Drugs Inventory 
DEPARTMENT OF HEALTH,BLACKPOOL TEACHING HOSPITALS NHS FT ,May-21,Pharmacy Drugs Inventory ,Pharmacy Drugs Inventory ,Bayer Plc,824C346118,"77,558.76",Pharmacy Drugs Inventory 
DEPARTMENT OF HEALTH,BLACKPOOL TEACHING HOSPITALS NHS FT ,May-21,Pharmacy Drugs Inventory ,Pharmacy Drugs Inventory ,Bayer Plc,824C348360,"100,370.16",Pharmacy Drugs Inventory 
DEPARTMENT OF HEALTH,BLACKPOOL TEACHING HOSPITALS NHS FT ,May-21,Pharmacy Drugs Inventory ,Pharmacy Drugs Inventory ,Bayer Plc,824c345021,"82,121.04",Pharmacy Drugs Inventory 
DEPARTMENT OF HEALTH,BLACKPOOL TEACHING HOSPITALS NHS FT ,May-21,Pharmacy Drugs Inventory ,Pharmacy Drugs Inventory ,Novartis Pharmaceuticals Uk Ltd,92435119,"28,848.96",Pharmacy Drugs Inventory 
DEPARTMENT OF HEALTH,BLACKPOOL TEACHING HOSPITALS NHS FT ,May-21,Pharmacy Drugs Inventory ,Pharmacy Drugs Inventory ,Novartis Pharmaceuticals Uk Ltd,924412222,"43,273.44",Pharmacy Drugs Inventory 
DEPARTMENT OF HEALTH,BLACKPOOL TEACHING HOSPITALS NHS FT ,May-21,Pharmacy Drugs Inventory ,Pharmacy Drugs Inventory ,Novartis Pharmaceuticals Uk Ltd,92444573,"50,485.68",Pharmacy Drugs Inventory 
DEPARTMENT OF HEALTH,BLACKPOOL TEACHING HOSPITALS NHS FT ,May-21,Pharmacy Drugs Inventory ,Pharmacy Drugs Inventory ,Janssen-Cilag Ltd,930748352,"26,956.80",Pharmacy Drugs Inventory 
DEPARTMENT OF HEALTH,BLACKPOOL TEACHING HOSPITALS NHS FT ,May-21,Pharmacy Drugs Inventory ,Pharmacy Drugs Inventory ,Janssen-Cilag Ltd,930749851,"53,913.60",Pharmacy Drugs Inventory 
DEPARTMENT OF HEALTH,BLACKPOOL TEACHING HOSPITALS NHS FT ,May-21,Pharmacy Drugs Inventory ,Pharmacy Drugs Inventory ,Qualasept Ltd,SQS0076167,"34,475.28",Pharmacy Drugs Inventory 
DEPARTMENT OF HEALTH,BLACKPOOL TEACHING HOSPITALS NHS FT ,May-21,Pharmacy Drugs Inventory ,Pharmacy Drugs Inventory ,Qualasept Ltd,SQS0080593,"57,030.24",Pharmacy Drugs Inventory 
DEPARTMENT OF HEALTH,BLACKPOOL TEACHING HOSPITALS NHS FT ,May-21,Multi-Divisional charge ,Multi-Divisional charge ,St Helens and Knowsley Hospital Services NHS Trust,16805247,"720,000.00",Inter NHS Medical staff recharges
DEPARTMENT OF HEALTH,BLACKPOOL TEACHING HOSPITALS NHS FT ,May-21,Multi-Divisional charge ,Multi-Divisional charge ,NHS Supply Chain Co-ordination Limited,1121221327,"116,873.34",NHS Supply Chain Catalogue items
DEPARTMENT OF HEALTH,BLACKPOOL TEACHING HOSPITALS NHS FT ,May-21,Multi-Divisional charge ,Multi-Divisional charge ,NHS Supply Chain Co-ordination Limited,1122017802,"332,360.20",NHS Supply Chain Catalogue items
DEPARTMENT OF HEALTH,BLACKPOOL TEACHING HOSPITALS NHS FT ,May-21,Multi-Divisional charge ,Multi-Divisional charge ,NHS Supply Chain Co-ordination Limited,1122021791,"113,087.82",NHS Supply Chain Catalogue items
DEPARTMENT OF HEALTH,BLACKPOOL TEACHING HOSPITALS NHS FT ,May-21,Multi-Divisional charge ,Multi-Divisional charge ,NHS Supply Chain Co-ordination Limited,1122026225,"244,544.20",NHS Supply Chain Catalogue items
DEPARTMENT OF HEALTH,BLACKPOOL TEACHING HOSPITALS NHS FT ,May-21,Multi-Divisional charge ,Multi-Divisional charge ,NHS Supply Chain Co-ordination Limited,1122031754,"115,460.35",NHS Supply Chain Catalogue items
